fUST/lending_fUST_20260427
["ID","MTS","AMOUNT","RATE_DAILY","PERIOD"]
[421206143,1777252241426,-2072.04,0.00019178,2]
[421206144,1777252241437,-598.63656238,0.00019178,2]
[421206145,1777252241447,-614.92,0.00019178,2]
[421206146,1777252241457,-640.14,0.00019178,2]
[421206147,1777252241467,-1235.04,0.00019178,2]
[421206148,1777252241477,-939.16,0.00019178,2]
[421206149,1777252241487,-500.0,0.00019178,2]
[421206150,1777252241497,-500.0,0.00019178,2]
[421206151,1777252241507,-500.0,0.00019178,2]
[421206152,1777252241517,-220.59413454,0.00019178,2]
[421206153,1777252241526,-500.0,0.00019178,2]
[421206154,1777252241536,-500.0,0.00019178,2]
[421206155,1777252241546,-856.94,0.00019178,2]
[421206156,1777252241555,-1000.0,0.00019178,2]
[421206157,1777252241566,-500.0,0.00019178,2]
[421206158,1777252241576,-500.0,0.00019178,2]
[421206159,1777252241586,-3559.35,0.00019178,2]
[421206160,1777252241596,-500.0,0.00019178,2]
[421206161,1777252241607,-500.0,0.00019178,2]
[421206162,1777252241616,-487.56145655,0.00019178,2]
[421206163,1777252241626,-1048.98,0.00019178,2]
[421206164,1777252241636,-500.0,0.00019178,2]
[421206165,1777252241646,-581.05253029,0.00019178,2]
[421206166,1777252241657,-500.0,0.00019178,2]
[421206167,1777252241668,-500.0,0.00019178,2]
[421206168,1777252241678,-171.111488,0.00019178,2]
[421206169,1777252241688,-621.92756891,0.00019178,2]
[421206170,1777252241699,-500.0,0.00019178,2]
[421206171,1777252241708,-302.634992,0.00019178,2]
[421206172,1777252241719,-168.085991,0.00019178,2]
[421206173,1777252241729,-500.0,0.00019178,2]
[421206174,1777252241739,-473.039374,0.00019178,2]
[421206175,1777252241750,-500.0,0.00019178,2]
[421206176,1777252241759,-500.0,0.00019178,2]
[421206177,1777252241769,-500.0,0.00019178,2]
[421206178,1777252241780,-500.0,0.00019178,2]
[421206179,1777252241789,-500.0,0.00019178,2]
[421206180,1777252241799,-500.0,0.00019178,2]
[421206181,1777252241809,-1831.07,0.00019178,2]
[421206182,1777252241819,-500.0,0.00019178,2]
[421206183,1777252241829,-272.13625753,0.00019178,2]
[421206184,1777252241838,-500.0,0.00019178,2]
[421206185,1777252241848,-527.62465672,0.00019178,2]
[421206186,1777252241858,-578.3183,0.00019178,2]
[421206187,1777252241868,-3649.23,0.00019178,2]
[421206188,1777252241878,-500.0,0.00019178,2]
[421206189,1777252241888,-500.0,0.00019178,2]
[421206190,1777252241898,-512.33447827,0.00019178,2]
[421206191,1777252241909,-680.65,0.00019178,2]
[421206192,1777252241920,-590.25518172,0.00019178,2]
[421206193,1777252241930,-509.95119067,0.00019178,2]
[421206194,1777252241941,-500.0,0.00019178,2]
[421206195,1777252241951,-500.0,0.00019178,2]
[421206196,1777252241961,-535.01941428,0.00019178,2]
[421206197,1777252241971,-500.0,0.00019178,2]
[421206198,1777252241980,-580.58382602,0.00019178,2]
[421206199,1777252241995,-500.0,0.00019178,2]
[421206200,1777252242005,-500.0,0.00019178,2]
[421206201,1777252242015,-500.0,0.00019178,2]
[421206202,1777252242025,-797.69,0.00019178,2]
[421206203,1777252242035,-2160.6,0.00019178,2]
[421206204,1777252242045,-500.0,0.00019178,2]
[421206205,1777252242055,-862.55,0.00019178,2]
[421206206,1777252242065,-447.45009921,0.00019178,2]
[421206207,1777252242075,-500.0,0.00019178,2]
[421206208,1777252242085,-1915.98,0.00019178,2]
[421206209,1777252242095,-500.0,0.00019178,2]
[421206210,1777252242105,-500.0,0.00019178,2]
[421206211,1777252242114,-536.23,0.00019178,2]
[421206212,1777252242124,-266.44450678,0.00019178,2]
[421206213,1777252242135,-500.0,0.00019178,2]
[421206214,1777252242145,-1322.34,0.00019178,2]
[421206215,1777252242156,-500.0,0.00019178,2]
[421206216,1777252242166,-500.0,0.00019178,2]
[421206217,1777252242176,-500.0,0.00019178,2]
[421206218,1777252242187,-288.92943493,0.00019178,2]
[421206219,1777252242196,-618.29,0.00019178,2]
[421206220,1777252242206,-500.0,0.00019178,2]
[421206221,1777252242216,-500.0,0.00019178,2]
[421206222,1777252242226,-500.0,0.00019178,2]
[421206223,1777252242236,-500.0,0.00019178,2]
[421206224,1777252242247,-500.0,0.00019178,2]
[421206225,1777252242257,-500.0,0.00019178,2]
[421206226,1777252242266,-500.0,0.00019178,2]
[421206227,1777252242276,-500.0,0.00019178,2]
[421206228,1777252242286,-528.8373225,0.00019178,2]
[421206229,1777252242296,-4022.3,0.00019178,2]
[421206230,1777252242306,-544.41768054,0.00019178,2]
[421206231,1777252242316,-3408.7,0.00019178,2]
[421206232,1777252242326,-500.0,0.00019178,2]
[421206233,1777252242335,-500.0,0.00019178,2]
[421206234,1777252242345,-500.0,0.00019178,2]
[421206235,1777252242355,-513.02411654,0.00019178,2]
[421206236,1777252242365,-500.0,0.00019178,2]
[421206237,1777252242375,-512.99059013,0.00019178,2]
[421206238,1777252242385,-500.0,0.00019178,2]
[421206239,1777252242396,-8395.94,0.00019178,2]
[421206240,1777252242406,-556.55,0.00019178,2]
[421206241,1777252242416,-1758.84,0.00019178,2]
[421206242,1777252242426,-500.0,0.00019178,2]
[421206243,1777252242436,-500.0,0.00019178,2]
[421206244,1777252242446,-824.66,0.00019178,2]
[421206245,1777252242456,-500.0,0.00019178,2]
[421206246,1777252242466,-500.0,0.00019178,2]
[421206247,1777252242476,-1733.64,0.00019178,2]
[421206248,1777252242486,-500.0,0.00019178,2]
[421206249,1777252242496,-878.17,0.00019178,2]
[421206250,1777252242507,-500.0,0.00019178,2]
[421206251,1777252242517,-500.0,0.00019178,2]
[421206252,1777252242527,-500.0,0.00019178,2]
[421206253,1777252242537,-2081.83,0.00019178,2]
[421206254,1777252242547,-693.55,0.00019178,2]
[421206255,1777252242557,-1525.92,0.00019178,2]
[421206256,1777252242567,-500.0,0.00019178,2]
[421206257,1777252242577,-500.0,0.00019178,2]
[421206258,1777252242587,-500.0,0.00019178,2]
[421206259,1777252242598,-1000.0,0.00019178,2]
[421206260,1777252242608,-10702.35,0.00019178,2]
[421206261,1777252242618,-500.0,0.00019178,2]
[421206262,1777252242628,-500.0,0.00019178,2]
[421206263,1777252242638,-505.31051014,0.00019178,2]
[421206264,1777252242648,-326.71417713,0.00019178,2]
[421206265,1777252242659,-500.0,0.00019178,2]
[421206266,1777252242669,-500.0,0.00019178,2]
[421206267,1777252242679,-500.0,0.00019178,2]
[421206268,1777252242689,-2622.05,0.00019178,2]
[421206269,1777252242699,-500.0,0.00019178,2]
[421206271,1777252242708,-500.0,0.00019178,2]
[421206273,1777252242718,-4741.22,0.00019178,2]
[421206275,1777252242728,-500.0,0.00019178,2]
[421206278,1777252242739,-500.0,0.00019178,2]
[421206279,1777252242749,-500.0,0.00019178,2]
[421206281,1777252242759,-500.0,0.00019178,2]
[421206283,1777252242769,-2940.85,0.00019178,2]
[421206284,1777252242779,-7118.91,0.00019178,2]
[421206285,1777252242789,-1060.42,0.00019178,2]
[421206287,1777252242800,-500.0,0.00019178,2]
[421206289,1777252242811,-500.0,0.00019178,2]
[421206291,1777252242821,-500.0,0.00019178,2]
[421206292,1777252242831,-500.0,0.00019178,2]
[421206294,1777252242841,-10721.83,0.00019178,2]
[421206295,1777252242851,-500.0,0.00019178,2]
[421206296,1777252242861,-6988.34,0.00019178,2]
[421206298,1777252242871,-500.0,0.00019178,2]
[421206299,1777252242881,-334.62,0.00019178,2]
[421206300,1777252242891,-500.0,0.00019178,2]
[421206301,1777252242902,-1620.36,0.00019178,2]
[421206302,1777252242912,-500.0,0.00019178,2]
[421206308,1777252243200,-500.0,0.00019178,2]
[421206310,1777252243219,-3244.79,0.00019178,2]
[421206311,1777252243230,-500.0,0.00019178,2]
[421206312,1777252243240,-620.61,0.00019178,2]
[421206314,1777252243250,-510.94838669,0.00019178,2]
[421206315,1777252243260,-6366.08,0.00019178,2]
[421206316,1777252243270,-555.92473928,0.00019178,2]
[421206317,1777252243279,-818.97,0.00019178,2]
[421206318,1777252243289,-500.0,0.00019178,2]
[421206319,1777252243299,-500.0,0.00019178,2]
[421206320,1777252243309,-500.0,0.00019178,2]
[421206322,1777252243318,-502.06,0.00019178,2]
[421206324,1777252243328,-500.0,0.00019178,2]
[421206326,1777252243338,-457.89199142,0.00019178,2]
[421206327,1777252243348,-500.0,0.00019178,2]
[421206328,1777252243358,-545.0,0.00019178,2]
[421206329,1777252243368,-500.0,0.00019178,2]
[421206330,1777252243378,-500.0,0.00019178,2]
[421206331,1777252243388,-500.0,0.00019178,2]
[421206332,1777252243398,-500.0,0.00019178,2]
[421206333,1777252243410,-1996.46,0.00019178,2]
[421206334,1777252243419,-500.0,0.00019178,2]
[421206335,1777252243429,-500.0,0.00019178,2]
[421206336,1777252243439,-533.55862564,0.00019178,2]
[421206337,1777252243448,-747.1,0.00019178,2]
[421206338,1777252243459,-903.95,0.00019178,2]
[421206339,1777252243468,-500.0,0.00019178,2]
[421206340,1777252243478,-500.0,0.00019178,2]
[421206342,1777252243488,-500.0,0.00019178,2]
[421206343,1777252243498,-500.0,0.00019178,2]
[421206344,1777252243508,-530.48,0.00019178,2]
[421206345,1777252243518,-2461.52,0.00019178,2]
[421206346,1777252243527,-500.0,0.00019178,2]
[421206347,1777252243536,-712.42,0.00019178,2]
[421206348,1777252243545,-2331.95,0.00019178,2]
[421206349,1777252243555,-569.52,0.00019178,2]
[421206350,1777252243565,-435.61991656,0.00019178,2]
[421206351,1777252243576,-1993.04,0.00019178,2]
[421206352,1777252243585,-500.0,0.00019178,2]
[421206353,1777252243595,-7146.82,0.00019178,2]
[421206354,1777252243604,-4308.46,0.00019178,2]
[421206355,1777252243614,-500.0,0.00019178,2]
[421206357,1777252243625,-6019.62,0.00019178,2]
[421206359,1777252243635,-500.0,0.00019178,2]
[421206360,1777252243644,-500.0,0.00019178,2]
[421206361,1777252243654,-500.0,0.00019178,2]
[421206362,1777252243663,-1151.57,0.00019178,2]
[421206363,1777252243672,-1104.22,0.00019178,2]
[421206364,1777252243682,-3485.17,0.00019178,2]
[421206365,1777252243691,-500.0,0.00019178,2]
[421206366,1777252243701,-500.0,0.00019178,2]
[421206367,1777252243711,-1254.9393,0.00019178,2]
[421206368,1777252243720,-500.0,0.00019178,2]
[421206369,1777252243730,-500.0,0.00019178,2]
[421206370,1777252243740,-500.0,0.00019178,2]
[421206371,1777252243749,-500.0,0.00019178,2]
[421206372,1777252243759,-13808.32,0.00019178,2]
[421206373,1777252243769,-500.0,0.00019178,2]
[421206374,1777252243779,-500.0,0.00019178,2]
[421206375,1777252243789,-500.0,0.00019178,2]
[421206376,1777252243798,-1052.39,0.00019178,2]
[421206377,1777252243808,-500.0,0.00019178,2]
[421206378,1777252243818,-500.0,0.00019178,2]
[421206379,1777252243827,-500.0,0.00019178,2]
[421206380,1777252243837,-3859.38,0.00019178,2]
[421206381,1777252243847,-500.0,0.00019178,2]
[421206382,1777252243856,-2237.17,0.00019178,2]
[421206383,1777252243866,-2796.02,0.00019178,2]
[421206384,1777252243876,-500.0,0.00019178,2]
[421206385,1777252243886,-500.0,0.00019178,2]
[421206386,1777252243895,-1371.81,0.00019178,2]
[421206387,1777252243905,-500.0,0.00019178,2]
[421206388,1777252243915,-500.0,0.00019178,2]
[421206389,1777252243926,-6969.25,0.00019178,2]
[421206390,1777252243936,-1452.73,0.00019178,2]
[421206391,1777252243946,-500.0,0.00019178,2]
[421206392,1777252243956,-639.92,0.00019178,2]
[421206393,1777252243966,-500.0,0.00019178,2]
[421206394,1777252243975,-1505.24,0.00019178,2]
[421206395,1777252243986,-572.31900454,0.00019178,2]
[421206396,1777252243996,-3367.94,0.00019178,2]
[421206397,1777252244006,-1175.7,0.00019178,2]
[421206398,1777252244016,-500.0,0.00019178,2]
[421206399,1777252244026,-2292.3,0.00019178,2]
[421206400,1777252244037,-1009.38,0.00019178,2]
[421206401,1777252244046,-43430.34,0.00019178,2]
[421206402,1777252244057,-500.0,0.00019178,2]
[421206403,1777252244067,-1584.99,0.00019178,2]
[421206404,1777252244076,-2935.34,0.00019178,2]
[421206405,1777252244086,-495.38853426,0.00019178,2]
[421206406,1777252244096,-534.3387154,0.00019178,2]
[421206407,1777252244106,-500.0,0.00019178,2]
[421206408,1777252244119,-606.37899947,0.00019178,2]
[421206409,1777252244129,-2272.59,0.00019178,2]
[421206410,1777252244139,-2413.55,0.00019178,2]
[421206411,1777252244149,-775.82,0.00019178,2]
[421206412,1777252244161,-500.0,0.00019178,2]
[421206413,1777252244170,-500.0,0.00019178,2]
[421206414,1777252244180,-1358.57,0.00019178,2]
[421206415,1777252244191,-15642.85,0.00019178,2]
[421206416,1777252244201,-2610.46,0.00019178,2]
[421206417,1777252244210,-500.0,0.00019178,2]
[421206418,1777252244220,-1128.7,0.00019178,2]
[421206419,1777252244230,-348.44080929,0.00019178,2]
[421206420,1777252244240,-500.0,0.00019178,2]
[421206421,1777252244250,-3627.32,0.00019178,2]
[421206422,1777252244259,-15664.93,0.00019178,2]
[421206423,1777252244269,-500.0,0.00019178,2]
[421206424,1777252244279,-500.0,0.00019178,2]
[421206425,1777252244289,-508.91,0.00019178,2]
[421206426,1777252244298,-1541.47,0.00019178,2]
[421206427,1777252244308,-3377.63,0.00019178,2]
[421206428,1777252244317,-5870.95,0.00019178,2]
[421206429,1777252244327,-2217.69,0.00019178,2]
[421206430,1777252244337,-500.0,0.00019178,2]
[421206431,1777252244346,-2298.98,0.00019178,2]
[421206432,1777252244355,-1053.6,0.00019178,2]
[421206433,1777252244365,-500.0,0.00019178,2]
[421206434,1777252244374,-393.17127007,0.00019178,2]
[421206435,1777252244384,-15926.7,0.00019178,2]
[421206436,1777252244394,-544.58,0.00019178,2]
[421206437,1777252244404,-16753.56,0.00019178,2]
[421206438,1777252244414,-500.0,0.00019178,2]
[421206439,1777252244424,-500.0,0.00019178,2]
[421206440,1777252244434,-500.0,0.00019178,2]
[421206441,1777252244443,-5107.38,0.00019178,2]
[421206442,1777252244453,-500.0,0.00019178,2]
[421206443,1777252244463,-500.0,0.00019178,2]
[421206444,1777252244472,-1280.58,0.00019178,2]
[421206445,1777252244482,-1561.0,0.00019178,2]
[421206446,1777252244492,-5000.0,0.0001926,2]
[421206447,1777252244502,-320.48,0.000193,5]
[421206448,1777252244511,-151.0,0.000193,2]
[421206449,1777252244520,-151.0,0.000193,2]
[421206450,1777252244531,-5000.0,0.00019315,2]
[421206451,1777252244540,-1000.0,0.00019328,2]
[421206452,1777252244550,-5000.0,0.00019342,2]
[421206453,1777252244560,-5000.0,0.00019397,2]
[421206454,1777252244570,-531.9411435,0.000194,2]
[421206455,1777252244579,-534.85496584,0.000194,3]
[421206456,1777252244589,-530.13323734,0.000194,2]
[421206457,1777252244598,-587.8150448,0.000194,2]
[421206458,1777252244607,-448.42681418,0.000194,30]
[421206459,1777252244617,-151.0,0.000194,2]
[421206460,1777252244627,-151.0,0.000194,2]
[421206461,1777252244636,-151.0,0.000194,2]
[421206462,1777252244646,-8236.05003405,0.000194,2]
[421206463,1777252244655,-5000.0,0.00019425,2]
[421206464,1777252244665,-1668.702478,0.00019452,2]
[421206465,1777252244674,-500.0,0.00019452,2]
[421206466,1777252244683,-500.0,0.00019452,2]
[421206467,1777252244693,-513.12705932,0.00019452,2]
[421206468,1777252244703,-1132.63,0.00019452,2]
[421206469,1777252244712,-984.55,0.00019452,2]
[421206470,1777252244722,-1518.44,0.00019452,2]
[421206471,1777252244732,-546.89447249,0.00019452,2]
[421206472,1777252244741,-500.0,0.00019452,2]
[421206473,1777252244751,-500.0,0.00019452,2]
[421206474,1777252244761,-516.88,0.00019452,2]
[421206475,1777252244771,-500.0,0.00019452,2]
[421206476,1777252244780,-500.0,0.00019452,2]
[421206477,1777252244790,-2682.82,0.00019452,2]
[421206478,1777252244799,-500.0,0.00019452,2]
[421206479,1777252244808,-500.0,0.00019452,2]
[421206480,1777252244818,-500.0,0.00019452,2]
[421206481,1777252244828,-500.0,0.00019452,2]
[421206482,1777252244837,-500.0,0.00019452,2]
[421206483,1777252244847,-500.0,0.00019452,2]
[421206484,1777252244856,-500.0,0.00019452,2]
[421206485,1777252244866,-500.0,0.00019452,2]
[421206486,1777252244876,-600.95,0.00019452,2]
[421206487,1777252244885,-1578.43,0.00019452,2]
[421206488,1777252244895,-500.0,0.00019452,2]
[421206489,1777252244905,-500.0,0.00019452,2]
[421206490,1777252244915,-500.0,0.00019452,2]
[421206491,1777252244925,-615.84,0.00019452,2]
[421206492,1777252244934,-516.58,0.00019452,2]
[421206493,1777252244944,-500.0,0.00019452,2]
[421206494,1777252244953,-347.79403118,0.00019452,2]
[421206495,1777252244963,-500.0,0.00019452,2]
[421206496,1777252244972,-500.0,0.00019452,2]
[421206497,1777252244982,-500.0,0.00019452,2]
[421206498,1777252244992,-500.0,0.00019452,2]
[421206499,1777252245002,-1013.71,0.00019452,2]
[421206500,1777252245012,-500.0,0.00019452,2]
[421206501,1777252245021,-1025.53,0.00019452,2]
[421206502,1777252245031,-2568.39,0.00019452,2]
[421206503,1777252245040,-500.0,0.00019452,2]
[421206504,1777252245050,-500.0,0.00019452,2]
[421206505,1777252245060,-500.0,0.00019452,2]
[421206506,1777252245069,-500.0,0.00019452,2]
[421206507,1777252245079,-333.11335968,0.00019452,2]
[421206508,1777252245088,-677.04,0.00019452,2]
[421206509,1777252245097,-500.0,0.00019452,2]
[421206510,1777252245107,-500.0,0.00019452,2]
[421206511,1777252245116,-504.18886615,0.00019452,2]
[421206512,1777252245126,-500.0,0.00019452,2]
[421206513,1777252245136,-218.92893514,0.00019452,2]
[421206514,1777252245145,-1184.56,0.00019452,2]
[421206515,1777252245155,-2591.09,0.00019452,2]
[421206516,1777252245164,-2017.13,0.00019452,2]
[421206517,1777252245175,-663.72,0.00019452,2]
[421206518,1777252245184,-328.77093863,0.00019452,2]
[421206519,1777252245194,-500.0,0.00019452,2]
[421206520,1777252245203,-500.0,0.00019452,2]
[421206521,1777252245213,-500.0,0.00019452,2]
[421206522,1777252245223,-500.0,0.00019452,2]
[421206523,1777252245232,-1510.86,0.00019452,2]
[421206524,1777252245242,-500.0,0.00019452,2]
[421206525,1777252245252,-500.0,0.00019452,2]
[421206526,1777252245262,-1069.68,0.00019452,2]
[421206527,1777252245271,-1473.6,0.00019452,2]
[421206528,1777252245282,-500.0,0.00019452,2]
[421206529,1777252245291,-570.7429932,0.00019452,2]
[421206530,1777252245301,-500.0,0.00019452,2]
[421206531,1777252245311,-500.0,0.00019452,2]
[421206532,1777252245321,-500.0,0.00019452,2]
[421206533,1777252245334,-1371.79,0.00019452,2]
[421206534,1777252245344,-525.4968831,0.00019452,2]
[421206535,1777252245354,-500.0,0.00019452,2]
[421206536,1777252245364,-500.0,0.00019452,2]
[421206537,1777252245374,-500.0,0.00019452,2]
[421206539,1777252245383,-1552.88,0.00019452,2]
[421206541,1777252245393,-500.0,0.00019452,2]
[421206542,1777252245403,-500.0,0.00019452,2]
[421206543,1777252245413,-500.0,0.00019452,2]
[421206544,1777252245424,-1607.24,0.00019452,2]
[421206545,1777252245434,-500.0,0.00019452,2]
[421206546,1777252245444,-500.0,0.00019452,2]
[421206547,1777252245454,-669.09,0.00019452,2]
[421206548,1777252245463,-500.0,0.00019452,2]
[421206549,1777252245474,-500.0,0.00019452,2]
[421206550,1777252245483,-500.0,0.00019452,2]
[421206551,1777252245492,-500.0,0.00019452,2]
[421206552,1777252245502,-584.61,0.00019452,2]
[421206553,1777252245511,-500.0,0.00019452,2]
[421206554,1777252245520,-500.0,0.00019452,2]
[421206557,1777252245575,-942.83,0.00019452,2]
[421206558,1777252245584,-820.65,0.00019452,2]
[421206559,1777252245594,-5598.78,0.00019452,2]
[421206560,1777252245603,-500.0,0.00019452,2]
[421206561,1777252245612,-500.0,0.00019452,2]
[421206562,1777252245621,-500.0,0.00019452,2]
[421206563,1777252245631,-500.0,0.00019452,2]
[421206564,1777252245640,-301.5683294,0.00019452,2]
[421206565,1777252245650,-500.0,0.00019452,2]
[421206566,1777252245659,-500.0,0.00019452,2]
[421206567,1777252245669,-1087.97,0.00019452,2]
[421206568,1777252245678,-500.0,0.00019452,2]
[421206569,1777252245687,-500.0,0.00019452,2]
[421206570,1777252245696,-883.94,0.00019452,2]
[421206571,1777252245706,-500.0,0.00019452,2]
[421206572,1777252245715,-1348.71,0.00019452,2]
[421206573,1777252245724,-1932.8,0.00019452,2]
[421206575,1777252245734,-500.0,0.00019452,2]
[421206577,1777252245743,-500.0,0.00019452,2]
[421206578,1777252245753,-2122.39,0.00019452,2]
[421206579,1777252245762,-500.0,0.00019452,2]
[421206580,1777252245771,-500.0,0.00019452,2]
[421206581,1777252245780,-680.28,0.00019452,2]
[421206582,1777252245790,-1149.45,0.00019452,2]
[421206583,1777252245799,-500.0,0.00019452,2]
[421206584,1777252245808,-500.0,0.00019452,2]
[421206585,1777252245818,-220.67058909,0.00019452,2]
[421206586,1777252245827,-2083.43,0.00019452,2]
[421206587,1777252245837,-554.85,0.00019452,2]
[421206588,1777252245847,-601.3911284,0.00019452,2]
[421206590,1777252245856,-500.0,0.00019452,2]
[421206591,1777252245866,-500.0,0.00019452,2]
[421206592,1777252245875,-500.0,0.00019452,2]
[421206593,1777252245884,-500.0,0.00019452,2]
[421206594,1777252245894,-500.0,0.00019452,2]
[421206595,1777252245903,-582.77,0.00019452,2]
[421206596,1777252245913,-626.72,0.00019452,2]
[421206598,1777252245922,-500.0,0.00019452,2]
[421206599,1777252245931,-755.79,0.00019452,2]
[421206600,1777252245940,-860.28,0.00019452,2]
[421206601,1777252245950,-1027.57,0.00019452,2]
[421206602,1777252245959,-500.0,0.00019452,2]
[421206603,1777252245968,-500.0,0.00019452,2]
[421206604,1777252245977,-500.0,0.00019452,2]
[421206605,1777252245987,-3832.14,0.00019452,2]
[421206606,1777252245996,-967.01,0.00019452,2]
[421206607,1777252246006,-500.0,0.00019452,2]
[421206608,1777252246015,-2072.04,0.00019452,2]
[421206609,1777252246024,-614.92,0.00019452,2]
[421206610,1777252246034,-640.14,0.00019452,2]
[421206611,1777252246043,-1235.04,0.00019452,2]
[421206612,1777252246052,-939.16,0.00019452,2]
[421206613,1777252246061,-500.0,0.00019452,2]
[421206614,1777252246071,-500.0,0.00019452,2]
[421206615,1777252246081,-300.77488579,0.00019452,2]
[421206616,1777252246091,-500.0,0.00019452,2]
[421206617,1777252246102,-856.94,0.00019452,2]
[421206618,1777252246112,-1000.0,0.00019452,2]
[421206619,1777252246122,-500.0,0.00019452,2]
[421206620,1777252246131,-500.0,0.00019452,2]
[421206621,1777252246141,-3559.35,0.00019452,2]
[421206622,1777252246151,-555.29939567,0.00019452,2]
[421206623,1777252246161,-188.15033694,0.00019452,2]
[421206624,1777252246170,-1048.98,0.00019452,2]
[421206625,1777252246179,-500.0,0.00019452,2]
[421206626,1777252246189,-297.67624338,0.00019452,2]
[421206627,1777252246198,-500.0,0.00019452,2]
[421206628,1777252246208,-500.0,0.00019452,2]
[421206629,1777252246218,-302.634992,0.00019452,2]
[421206630,1777252246227,-500.0,0.00019452,2]
[421206631,1777252246237,-473.039374,0.00019452,2]
[421206632,1777252246246,-500.0,0.00019452,2]
[421206633,1777252246256,-500.0,0.00019452,2]
[421206634,1777252246265,-500.0,0.00019452,2]
[421206635,1777252246274,-500.0,0.00019452,2]
[421206636,1777252246284,-500.0,0.00019452,2]
[421206637,1777252246293,-1831.07,0.00019452,2]
[421206638,1777252246303,-500.0,0.00019452,2]
[421206639,1777252246312,-578.3183,0.00019452,2]
[421206640,1777252246322,-3649.23,0.00019452,2]
[421206641,1777252246331,-500.0,0.00019452,2]
[421206642,1777252246343,-680.65,0.00019452,2]
[421206643,1777252246352,-500.0,0.00019452,2]
[421206644,1777252246362,-500.0,0.00019452,2]
[421206645,1777252246372,-797.69,0.00019452,2]
[421206646,1777252246381,-2160.6,0.00019452,2]
[421206647,1777252246391,-862.55,0.00019452,2]
[421206648,1777252246400,-500.0,0.00019452,2]
[421206649,1777252246409,-1915.98,0.00019452,2]
[421206650,1777252246418,-500.0,0.00019452,2]
[421206651,1777252246427,-536.23,0.00019452,2]
[421206652,1777252246437,-1322.34,0.00019452,2]
[421206653,1777252246446,-618.29,0.00019452,2]
[421206654,1777252246455,-500.0,0.00019452,2]
[421206655,1777252246464,-500.0,0.00019452,2]
[421206656,1777252246473,-347.98134402,0.00019452,2]
[421206657,1777252246483,-4022.3,0.00019452,2]
[421206658,1777252246492,-3408.7,0.00019452,2]
[421206659,1777252246501,-500.0,0.00019452,2]
[421206660,1777252246510,-500.0,0.00019452,2]
[421206661,1777252246520,-500.0,0.00019452,2]
[421206662,1777252246529,-500.0,0.00019452,2]
[421206663,1777252246538,-5094.83408022,0.00019452,2]
[421206664,1777252246567,-3301.10591978,0.00019452,2]
[421206665,1777252246576,-556.55,0.00019452,2]
[421206666,1777252246585,-1758.84,0.00019452,2]
[421206667,1777252246595,-500.0,0.00019452,2]
[421206668,1777252246604,-484.94249398,0.00019452,2]
[421206669,1777252246614,-824.66,0.00019452,2]
[421206670,1777252246623,-500.0,0.00019452,2]
[421206671,1777252246632,-1733.64,0.00019452,2]
[421206672,1777252246641,-500.0,0.00019452,2]
[421206673,1777252246651,-878.17,0.00019452,2]
[421206674,1777252246661,-500.0,0.00019452,2]
[421206675,1777252246670,-500.0,0.00019452,2]